fUSD/lending_fUSD_20250103
["ID","MTS","AMOUNT","RATE_DAILY","PERIOD"]
[347591295,1735933842035,-216.70784646,0.000118,2]
[347591296,1735933842163,-500.0,0.00011799,2]
[347591297,1735933842173,-349.00017913,0.00011799,2]
[347591298,1735933842182,-783.29215354,0.000118,2]
[347591299,1735933842191,-357.80344432,0.000118,2]
[347591300,1735933842202,-142.19655568,0.000118,2]
[347591301,1735933842211,-253.68344432,0.000118,3]
[347591302,1735933842223,-746.31655568,0.000118,3]
[347591303,1735933842232,-452.58344431,0.000118,3]
[347591304,1735933842243,-547.41655569,0.000118,3]
[347591305,1735933842252,-1000.0,0.000118,3]
[347591306,1735933842262,-500.0,0.000118,2]
[347591307,1735933842271,-500.0,0.000118,2]
[347591308,1735933842280,-500.0,0.000118,2]
[347591309,1735933842290,-500.0,0.000118,2]
[347591310,1735933842298,-500.0,0.000118,2]
[347591311,1735933842307,-500.0,0.000118,2]
[347591312,1735933842317,-500.0,0.000118,2]
[347591313,1735933842328,-500.0,0.000118,2]
[347591314,1735933842339,-500.0,0.000118,2]
[347591315,1735933842348,-500.0,0.000118,2]
[347591316,1735933842357,-500.0,0.000118,2]
[347591317,1735933842367,-500.0,0.000118,2]
[347591318,1735933842376,-500.0,0.000118,2]
[347591319,1735933842387,-500.0,0.000118,2]
[347591320,1735933842398,-500.0,0.000118,2]
[347591321,1735933842408,-500.0,0.000118,2]
[347591322,1735933842417,-500.0,0.000118,2]
[347591323,1735933842428,-500.0,0.000118,2]
[347591324,1735933842437,-500.0,0.000118,2]
[347591325,1735933842447,-500.0,0.000118,2]
[347591326,1735933842456,-500.0,0.000118,2]
[347591327,1735933842465,-203.78635793,0.000118,2]
[347591328,1735933842474,-500.0,0.000118,2]
[347591329,1735933842483,-500.0,0.000118,2]
[347591330,1735933842492,-500.0,0.000118,2]
[347591331,1735933842502,-500.0,0.000118,2]
[347591332,1735933842511,-500.0,0.000118,2]
[347591333,1735933842520,-500.0,0.000118,2]
[347591334,1735933842529,-500.0,0.000118,2]
[347591335,1735933842538,-500.0,0.000118,2]
[347591336,1735933842548,-500.0,0.000118,2]
[347591337,1735933842557,-500.0,0.000118,2]
[347591338,1735933842566,-500.0,0.000118,2]
[347591339,1735933842575,-500.0,0.000118,2]
[347591340,1735933842584,-500.0,0.000118,2]
[347591341,1735933842592,-500.0,0.000118,2]
[347591342,1735933842601,-500.0,0.000118,2]
[347591343,1735933842610,-500.0,0.000118,2]
[347591344,1735933842619,-500.0,0.000118,2]
[347591345,1735933842628,-500.0,0.000118,2]
[347591346,1735933842637,-500.0,0.000118,2]
[347591347,1735933842646,-500.0,0.000118,2]
[347591348,1735933842655,-500.0,0.000118,2]
[347591349,1735933842663,-500.0,0.000118,2]
[347591350,1735933842672,-500.0,0.000118,2]
[347591351,1735933842682,-500.0,0.000118,2]
[347591352,1735933842691,-500.0,0.000118,2]
[347591353,1735933842700,-500.0,0.000118,2]
[347591354,1735933842710,-500.0,0.000118,2]
[347591355,1735933842719,-500.0,0.000118,2]
[347591356,1735933842728,-500.0,0.000118,2]
[347591357,1735933842737,-500.0,0.000118,2]
[347591358,1735933842746,-500.0,0.000118,2]
[347591359,1735933842755,-500.0,0.000118,2]
[347591360,1735933842764,-273.55,0.000118,2]
[347591361,1735933842773,-500.0,0.000118,2]
[347591362,1735933842782,-500.0,0.000118,2]
[347591363,1735933842791,-500.0,0.000118,2]
[347591364,1735933842800,-500.0,0.000118,2]
[347591365,1735933842810,-500.0,0.000118,2]
[347591366,1735933842819,-500.0,0.000118,2]
[347591367,1735933842828,-500.0,0.000118,2]
[347591368,1735933842837,-500.0,0.000118,2]
[347591369,1735933842846,-500.0,0.000118,2]
[347591370,1735933842855,-500.0,0.000118,2]
[347591371,1735933842864,-500.0,0.000118,2]
[347591372,1735933842873,-500.0,0.000118,2]
[347591373,1735933842882,-500.0,0.000118,2]
[347591374,1735933842892,-500.0,0.000118,2]
[347591375,1735933842901,-500.0,0.000118,2]
[347591376,1735933842910,-500.0,0.000118,2]
[347591377,1735933842919,-500.0,0.000118,2]
[347591378,1735933842929,-500.0,0.000118,2]
[347591379,1735933842938,-619.36,0.000118,2]
[347591380,1735933842947,-500.0,0.000118,2]
[347591381,1735933842956,-500.0,0.000118,2]
[347591383,1735933842964,-500.0,0.000118,2]
[347591384,1735933842973,-500.0,0.000118,2]
[347591387,1735933842982,-500.0,0.000118,2]
[347591388,1735933842991,-500.0,0.000118,2]
[347591389,1735933842999,-500.0,0.000118,2]
[347591390,1735933843008,-500.0,0.000118,2]
[347591391,1735933843017,-500.0,0.000118,2]
[347591393,1735933843026,-500.0,0.000118,2]
[347591395,1735933843035,-500.0,0.000118,2]
[347591397,1735933843046,-500.0,0.000118,2]
[347591398,1735933843055,-500.0,0.000118,2]
[347591399,1735933843064,-150.0,0.000118,2]
[347591401,1735933843073,-500.0,0.000118,2]
[347591403,1735933843082,-500.0,0.000118,2]
[347591405,1735933843091,-500.0,0.000118,2]
[347591407,1735933843100,-500.0,0.000118,2]
[347591410,1735933843109,-500.0,0.000118,2]
[347591412,1735933843118,-500.0,0.000118,2]
[347591415,1735933843127,-500.0,0.000118,2]
[347591417,1735933843135,-500.0,0.000118,2]
[347591420,1735933843144,-500.0,0.000118,2]
[347591422,1735933843154,-500.0,0.000118,2]
[347591424,1735933843163,-500.0,0.000118,2]
[347591426,1735933843171,-500.0,0.000118,2]
[347591429,1735933843180,-500.0,0.000118,2]
[347591431,1735933843190,-500.0,0.000118,2]
[347591432,1735933843199,-500.0,0.000118,2]
[347591433,1735933843208,-500.0,0.000118,2]
[347591434,1735933843217,-500.0,0.000118,2]
[347591435,1735933843227,-500.0,0.000118,2]
[347591436,1735933843236,-520.9,0.000118,2]
[347591437,1735933843245,-500.0,0.000118,2]
[347591438,1735933843254,-517.77,0.000118,2]
[347591439,1735933843263,-500.0,0.000118,2]
[347591440,1735933843272,-500.0,0.000118,2]
[347591441,1735933843281,-500.0,0.000118,2]
[347591442,1735933843290,-338.0,0.000118,2]
[347591443,1735933843299,-500.0,0.000118,2]
[347591444,1735933843308,-500.0,0.000118,2]
[347591445,1735933843318,-500.0,0.000118,2]
[347591446,1735933843331,-500.0,0.000118,2]
[347591447,1735933843340,-500.0,0.000118,2]
[347591448,1735933843349,-500.0,0.000118,2]
[347591449,1735933843358,-500.0,0.000118,2]
[347591450,1735933843367,-500.0,0.000118,2]
[347591451,1735933843377,-150.0,0.00011853,2]
[347591452,1735933843386,-500.0,0.00011897,2]
[347591453,1735933843395,-500.0,0.00011897,2]
[347591454,1735933843404,-553.36,0.00011897,2]
[347591455,1735933843413,-500.0,0.00011897,2]
[347591456,1735933843423,-500.0,0.00011897,2]
[347591457,1735933843432,-500.0,0.00011897,2]
[347591458,1735933843441,-605.35,0.00011897,2]
[347591459,1735933843450,-500.0,0.00011897,2]
[347591460,1735933843459,-500.0,0.00011897,2]
[347591461,1735933843468,-500.0,0.00011897,2]
[347591462,1735933843477,-196.94,0.00011897,2]
[347591463,1735933843486,-500.0,0.00011897,2]
[347591464,1735933843495,-197.23,0.00011897,2]
[347591465,1735933843504,-500.0,0.00011897,2]
[347591466,1735933843513,-500.0,0.00011897,2]
[347591467,1735933843522,-500.0,0.00011897,2]
[347591468,1735933843532,-322.13,0.00011897,2]
[347591469,1735933843540,-500.0,0.00011897,2]
[347591470,1735933843550,-500.0,0.00011897,2]
[347591471,1735933843559,-205.94,0.00011897,2]
[347591472,1735933843568,-500.0,0.00011897,2]
[347591473,1735933843577,-500.0,0.00011897,2]
[347591474,1735933843586,-500.0,0.00011897,2]
[347591475,1735933843595,-500.0,0.00011897,2]
[347591476,1735933843604,-500.0,0.00011897,2]
[347591477,1735933843613,-500.0,0.00011897,2]
[347591478,1735933843623,-500.0,0.00011897,2]
[347591479,1735933843632,-500.0,0.00011897,2]
[347591480,1735933843641,-500.0,0.00011897,2]
[347591481,1735933843651,-322.06,0.00011897,2]
[347591482,1735933843660,-500.0,0.00011897,2]
[347591483,1735933843669,-500.0,0.00011897,2]
[347591484,1735933843679,-500.0,0.00011897,2]
[347591485,1735933843688,-1019.83,0.00011897,2]
[347591486,1735933843697,-574.3,0.00011897,2]
[347591487,1735933843706,-500.0,0.00011897,2]
[347591488,1735933843715,-500.0,0.00011897,2]
[347591489,1735933843724,-500.0,0.00011897,2]
[347591490,1735933843733,-500.0,0.00011897,2]
[347591491,1735933843741,-500.0,0.00011897,2]
[347591492,1735933843750,-500.0,0.00011897,2]
[347591493,1735933843759,-940.06,0.00011897,2]
[347591494,1735933843768,-1198.63,0.00011897,2]
[347591495,1735933843777,-500.0,0.00011897,2]
[347591496,1735933843786,-500.0,0.00011897,2]
[347591497,1735933843795,-500.0,0.00011897,2]
[347591498,1735933843804,-649.37,0.00011897,2]
[347591499,1735933843812,-950.73,0.00011897,2]
[347591500,1735933843821,-500.0,0.00011897,2]
[347591501,1735933843830,-500.0,0.00011897,2]
[347591502,1735933843840,-500.0,0.00011897,2]
[347591503,1735933843848,-629.38,0.00011897,2]
[347591504,1735933843857,-500.0,0.00011898,2]
[347591505,1735933843866,-500.0,0.00011898,2]
[347591506,1735933843876,-2061.81,0.00011898,2]
[347591507,1735933843885,-888.56,0.00011898,2]
[347591508,1735933844058,-1000.29,0.00011898,2]
[347591509,1735933844069,-500.0,0.00011898,2]
[347591510,1735933844078,-500.0,0.00011898,2]
[347591511,1735933844087,-577.45,0.00011898,2]
[347591512,1735933844096,-1111.45,0.00011898,2]
[347591513,1735933844105,-567.4,0.00011898,2]
[347591514,1735933844114,-500.0,0.00011898,2]
[347591515,1735933844123,-500.0,0.00011898,2]
[347591516,1735933844132,-500.0,0.00011898,2]
[347591517,1735933844142,-500.0,0.00011898,2]
[347591518,1735933844150,-500.0,0.00011898,2]
[347591519,1735933844159,-212.64538762,0.00011899,2]
[347591520,1735933844168,-1544.76326421,0.00011899,2]
[347591521,1735933844179,-260.52189079,0.00011899,2]
[347591522,1735933844188,-90650.3117,0.000119,2]
[347591523,1735933844197,-8201.26,0.000119,2]
[347591524,1735933844206,-603.0864,0.000119,2]
[347591525,1735933844215,-500.0,0.000119,2]
[347591526,1735933844224,-1000.0,0.000119,2]
[347591527,1735933844233,-163.98927751,0.000119,2]
[347591528,1735933844242,-500.0,0.00011903,2]
[347591529,1735933844251,-150.0,0.00011904,2]
[347591530,1735933844260,-566.0,0.00011904,2]
[347591531,1735933844269,-1152.259,0.00011904,2]
[347591532,1735933844278,-536.0,0.00011904,2]
[347591533,1735933844287,-3892.0,0.00011904,2]
[347591534,1735933844296,-150.0,0.00011904,2]
[347591535,1735933844305,-3593.607,0.00011904,2]
[347591536,1735933844314,-7219.0,0.00011973,2]
[347591537,1735933844325,-150.0,0.00011973,2]
[347591538,1735933844335,-150.0,0.00011973,2]
[347591539,1735933844344,-500.0,0.00011979,2]
[347591540,1735933844353,-380.36018232,0.00011979,2]
[347591541,1735933844363,-75910.12725262,0.0001198,2]
[347591542,1735933844377,-67526.68015274,0.0001198,2]
[347591543,1735933844388,-980.44946021,0.0001198,2]
[347591544,1735933844399,-7618.07795771,0.0001198,2]
[347591545,1735933844411,-10241.12802264,0.0001198,2]
[347591546,1735933844422,-503.80631115,0.0001198,2]
[347591547,1735933844434,-686.24633394,0.0001198,2]
[347591548,1735933844473,-454.2835106,0.0001198,2]
[347591549,1735933844490,-1606.229472,0.0001198,2]
[347591550,1735933844619,-522.77379093,0.00011904,2]
[347591551,1735933844630,-580.22620907,0.00011904,2]
[347591552,1735933844639,-294.23506921,0.0001198,2]
[347591553,1735933844651,-931.13278959,0.0001198,2]
[347591554,1735933844661,-12723.98249449,0.0001198,2]
[347591555,1735933844680,-22491.7547035,0.0001198,2]
[347591556,1735933844691,-350.46,0.0001198,2]
[347591557,1735933844701,-375.0,0.0001198,2]
[347591558,1735933844712,-1115.06382413,0.0001198,2]
[347591559,1735933844723,-6766.8835218,0.0001198,2]
[347591560,1735933844734,-1041.21590967,0.0001198,2]
[347591561,1735933844745,-1098.0000002,0.0001198,2]
[347591562,1735933844756,-305553.73858573,0.0001198,2]
[347591563,1735933844767,-473.055,0.0001198,2]
[347591564,1735933844778,-401.0,0.0001198,2]
[347591572,1735933846080,-19443.74432988,0.00011799,2]
[347591574,1735933846090,-291.664876,0.00011799,2]
[347591576,1735933846099,-7375.21067448,0.0001198,2]
[347591577,1735933846110,-2213.15629143,0.0001198,2]
[347591578,1735933846124,-353.90848,0.0001198,2]
[347591579,1735933846255,-22787.37970422,0.0001198,2]
[347591580,1735933846266,-441.64,0.0001198,2]
[347591581,1735933846277,-1445.1646877,0.0001198,2]
[347591582,1735933846288,-780.86695753,0.0001198,2]
[347591583,1735933846438,-451.11890898,0.0001198,2]
[347591584,1735933846450,-7404.41532893,0.0001198,2]
[347591585,1735933846461,-22772.72994,0.0001198,2]
[347591690,1735934974140,-533.42,8.607e-05,2]
[347591712,1735935032335,-300.0,0.00010409,2]
[347591713,1735935032346,-501.42,0.0001041,2]
[347591714,1735935032355,-50.696,0.0001041,2]
[347591715,1735935032368,-14917.14891111,0.0001041,2]
[347591716,1735935032392,-3357.47508889,0.0001041,2]
[347591717,1735935032402,-269.16,0.00010494,2]
[347591718,1735935032412,-250.0,0.00010501,2]
[347591719,1735935032421,-1000.0,0.00010533,2]
[347591720,1735935032430,-499.65,0.00010533,2]
[347591721,1735935032439,-300.0,0.00010752,2]
[347591722,1735935032449,-250.0,0.00010765,2]
[347591723,1735935032459,-150.0,0.00010775,2]
[347591724,1735935032468,-150.0,0.00010775,2]
[347591725,1735935032477,-150.0,0.00010775,2]
[347591726,1735935032486,-150.0,0.00010775,2]
[347591727,1735935032495,-250.0,0.00010862,2]
[347591728,1735935032505,-533.42,0.00010871,2]
[347591729,1735935032513,-166.01,0.00010953,2]
[347591730,1735935032523,-428.67,0.00010976,2]
[347591731,1735935032532,-400.0,0.00010986,2]
[347591732,1735935032541,-150.0,0.00010989,2]
[347591733,1735935032551,-550.0,0.00011,2]
[347591734,1735935032560,-2456.12,0.00011079,2]
[347591735,1735935032569,-5561.0,0.000111,2]
[347591736,1735935032578,-150.0,0.00011174,2]
[347591737,1735935032587,-166.01,0.00011223,2]
[347591738,1735935032596,-279.364,0.000114,2]
[347591739,1735935032606,-5559.0,0.000114,3]
[347591740,1735935032615,-420.0,0.00011445,2]
[347591741,1735935032625,-2751.0,0.00011507,2]
[347591742,1735935032635,-150.0,0.00011574,2]
[347591743,1735935032648,-429.1538886,0.00011653,2]
[347591744,1735935032658,-23695.3926,0.00011699,2]
[347591745,1735935032667,-2500.0,0.00011699,2]
[347591746,1735935032677,-4431.308,0.000117,2]
[347591747,1735935032686,-1283.817,0.00011779,2]
[347591748,1735935032695,-440.1488,0.00011781,2]
[347591749,1735935032705,-500.0,0.00011799,2]
[347591750,1735935032722,-500.0,0.00011799,2]
[347591751,1735935032735,-500.0,0.00011799,2]
[347591752,1735935032745,-500.0,0.00011799,2]
[347591753,1735935032755,-434.72,0.00011799,2]
[347591754,1735935032764,-500.0,0.00011799,2]
[347591755,1735935032773,-500.0,0.00011799,2]
[347591756,1735935032783,-500.0,0.00011799,2]
[347591757,1735935032792,-624.73,0.00011799,2]
[347591758,1735935032802,-500.0,0.00011799,2]
[347591759,1735935032811,-500.0,0.00011799,2]
[347591760,1735935032821,-500.0,0.00011799,2]
[347591761,1735935032831,-399.78395961,0.00011799,2]
[347591762,1735935032840,-5000.0,0.00011799,2]
[347591763,1735935032851,-500.0,0.00011799,2]
[347591764,1735935032861,-220.59,0.00011799,2]
[347591765,1735935032870,-500.0,0.00011799,7]
[347591766,1735935032880,-500.0,0.00011799,2]
[347591767,1735935032891,-500.0,0.00011799,2]
[347591768,1735935032900,-500.0,0.00011799,2]
[347591769,1735935032910,-170.32,0.00011799,2]
[347591770,1735935032920,-500.0,0.00011799,2]
[347591771,1735935032930,-500.0,0.00011799,2]
[347591772,1735935032939,-648.0,0.00011799,2]
[347591773,1735935032949,-174.35,0.00011799,2]
[347591774,1735935032959,-500.0,0.00011799,2]
[347591775,1735935032968,-500.0,0.00011799,2]
[347591776,1735935032978,-500.0,0.00011799,2]
[347591777,1735935032987,-500.0,0.00011799,2]
[347591778,1735935032996,-500.0,0.00011799,2]
[347591779,1735935033006,-500.0,0.00011799,2]
[347591780,1735935033016,-500.0,0.00011799,2]
[347591781,1735935033026,-500.0,0.00011799,2]
[347591782,1735935033035,-500.0,0.00011799,2]
[347591783,1735935033045,-204.92918613,0.00011799,2]
[347591784,1735935033054,-644.27,0.00011799,2]
[347591785,1735935033064,-500.0,0.00011799,2]
[347591786,1735935033074,-500.0,0.00011799,2]
[347591787,1735935033084,-500.0,0.00011799,2]
[347591788,1735935033093,-500.0,0.00011799,2]
[347591789,1735935033103,-500.0,0.00011799,2]
[347591790,1735935033113,-500.0,0.00011799,2]
[347591791,1735935033123,-500.0,0.00011799,2]
[347591792,1735935033133,-500.0,0.00011799,2]
[347591793,1735935033144,-500.0,0.00011799,2]
[347591794,1735935033153,-500.0,0.00011799,2]
[347591795,1735935033163,-500.0,0.00011799,2]
[347591796,1735935033173,-500.0,0.00011799,2]
[347591797,1735935033183,-500.0,0.00011799,2]
[347591798,1735935033192,-500.0,0.00011799,2]
[347591799,1735935033201,-500.0,0.00011799,2]
[347591800,1735935033211,-500.95,0.00011799,2]
[347591801,1735935033221,-500.0,0.00011799,2]
[347591802,1735935033235,-500.0,0.00011799,2]
[347591803,1735935033245,-500.0,0.00011799,2]
[347591804,1735935033256,-368.2,0.00011799,2]
[347591805,1735935033266,-500.0,0.00011799,2]
[347591806,1735935033277,-581.22117344,0.00011799,2]
[347591807,1735935033287,-275.45,0.00011799,2]
[347591808,1735935033297,-500.0,0.00011799,2]
[347591809,1735935033307,-500.0,0.00011799,2]
[347591810,1735935033316,-500.0,0.00011799,2]
[347591811,1735935033326,-501.14,0.00011799,2]
[347591812,1735935033336,-500.0,0.00011799,2]
[347591813,1735935033346,-500.0,0.00011799,2]
[347591814,1735935033355,-436.48,0.00011799,2]
[347591815,1735935033365,-500.0,0.00011799,2]
[347591816,1735935033376,-500.0,0.00011799,2]
[347591817,1735935033385,-500.0,0.00011799,2]
[347591818,1735935033396,-500.0,0.00011799,2]
[347591819,1735935033407,-500.0,0.00011799,2]
[347591820,1735935033417,-542.59,0.00011799,2]
[347591821,1735935033427,-590.58,0.00011799,2]
[347591822,1735935033436,-500.0,0.00011799,2]
[347591823,1735935033446,-500.0,0.00011799,2]
[347591824,1735935033456,-500.0,0.00011799,2]
[347591825,1735935033465,-500.0,0.00011799,2]
[347591826,1735935033475,-500.0,0.00011799,2]
[347591827,1735935033485,-500.0,0.00011799,2]
[347591828,1735935033495,-500.0,0.00011799,2]
[347591829,1735935033504,-500.0,0.00011799,2]
[347591830,1735935033514,-500.0,0.00011799,2]
[347591831,1735935033524,-500.0,0.00011799,2]
[347591832,1735935033533,-500.0,0.00011799,2]
[347591833,1735935033840,-500.0,0.00011799,2]
[347591834,1735935033851,-500.0,0.00011799,2]
[347591835,1735935033860,-500.0,0.00011799,2]
[347591836,1735935033871,-500.0,0.00011799,2]
[347591837,1735935033881,-500.0,0.00011799,2]
[347591838,1735935033892,-500.0,0.00011799,2]
[347591839,1735935033902,-278.52165877,0.00011799,2]
[347591840,1735935033911,-428.6,0.00011799,2]
[347591841,1735935033921,-500.0,0.00011799,2]
[347591842,1735935033931,-500.0,0.00011799,2]
[347591843,1735935033941,-500.0,0.00011799,2]
[347591844,1735935033951,-500.0,0.00011799,2]
[347591845,1735935033961,-500.0,0.00011799,2]
[347591846,1735935033970,-500.0,0.00011799,2]
[347591847,1735935033983,-500.0,0.00011799,2]
[347591848,1735935033993,-500.0,0.00011799,2]
[347591849,1735935034003,-500.0,0.00011799,2]
[347591850,1735935034012,-500.0,0.00011799,2]
[347591851,1735935034021,-500.0,0.00011799,2]
[347591852,1735935034032,-581.56,0.00011799,2]
[347591853,1735935034042,-500.0,0.00011799,2]
[347591854,1735935034052,-500.0,0.00011799,2]
[347591855,1735935034062,-608.13,0.00011799,2]
[347591856,1735935034072,-408.39,0.00011799,2]
[347591857,1735935034082,-500.0,0.00011799,2]
[347591858,1735935034091,-500.0,0.00011799,2]
[347591859,1735935034101,-500.0,0.00011799,2]
[347591860,1735935034111,-461.7,0.00011799,2]
[347591861,1735935034121,-500.0,0.00011799,2]
[347591862,1735935034130,-500.0,0.00011799,2]
[347591863,1735935034142,-500.0,0.00011799,2]
[347591864,1735935034151,-500.0,0.00011799,2]
[347591865,1735935034161,-500.0,0.00011799,2]
[347591866,1735935034171,-500.0,0.00011799,2]
[347591867,1735935034181,-500.0,0.00011799,2]
[347591868,1735935034191,-500.0,0.00011799,2]
[347591869,1735935034201,-500.0,0.00011799,2]
[347591870,1735935034210,-500.0,0.00011799,2]
[347591871,1735935034220,-500.0,0.00011799,2]
[347591872,1735935034230,-500.0,0.00011799,2]
[347591873,1735935034239,-500.0,0.00011799,2]
[347591874,1735935034249,-500.0,0.00011799,2]
[347591875,1735935034259,-500.0,0.00011799,2]
[347591876,1735935034270,-500.0,0.00011799,2]
[347591877,1735935034279,-500.0,0.00011799,2]
[347591878,1735935034289,-500.0,0.00011799,2]
[347591879,1735935034299,-500.0,0.00011799,2]
[347591880,1735935034309,-500.0,0.00011799,2]
[347591881,1735935034319,-500.0,0.00011799,2]
[347591882,1735935034329,-500.0,0.00011799,2]
[347591883,1735935034338,-500.0,0.00011799,2]
[347591884,1735935034348,-500.0,0.00011799,2]
[347591885,1735935034357,-500.0,0.00011799,2]
[347591886,1735935034367,-500.0,0.00011799,2]
[347591887,1735935034377,-500.0,0.00011799,2]
[347591888,1735935034389,-500.0,0.00011799,2]
[347591889,1735935034398,-500.0,0.00011799,2]
[347591890,1735935034408,-500.0,0.00011799,2]
[347591891,1735935034417,-500.0,0.00011799,2]
[347591892,1735935034427,-500.0,0.00011799,2]
[347591893,1735935034437,-500.0,0.00011799,2]
[347591894,1735935034447,-500.0,0.00011799,2]
[347591895,1735935034457,-500.0,0.00011799,2]
[347591896,1735935034467,-500.0,0.00011799,2]
[347591897,1735935034477,-500.0,0.00011799,2]
[347591898,1735935034487,-500.0,0.00011799,2]
[347591899,1735935034497,-500.0,0.00011799,2]
[347591900,1735935034507,-500.0,0.00011799,2]
[347591901,1735935034517,-500.0,0.00011799,2]
[347591902,1735935034527,-500.0,0.00011799,2]
[347591903,1735935034537,-743.03,0.00011799,2]
[347591904,1735935034547,-500.0,0.00011799,2]
[347591905,1735935034557,-500.0,0.00011799,2]
[347591906,1735935034567,-500.0,0.00011799,2]
[347591907,1735935034577,-500.0,0.00011799,2]
[347591908,1735935034588,-500.0,0.00011799,2]
[347591909,1735935034598,-559.69,0.00011799,2]
[347591910,1735935034608,-500.0,0.00011799,2]
[347591911,1735935034620,-500.0,0.00011799,2]
[347591912,1735935034631,-500.0,0.00011799,2]
[347591913,1735935034651,-500.0,0.00011799,2]
[347591914,1735935034673,-500.0,0.00011799,2]
[347591915,1735935034688,-500.0,0.00011799,2]
[347591916,1735935034701,-500.0,0.00011799,2]
[347591917,1735935034712,-500.0,0.00011799,2]
[347591918,1735935034724,-441.4,0.00011799,2]
[347591919,1735935034737,-500.0,0.00011799,2]
[347591920,1735935034748,-500.0,0.00011799,2]
[347591921,1735935034760,-1148.69,0.00011799,2]
[347591922,1735935034773,-500.0,0.00011799,2]
[347591923,1735935034784,-578.99,0.00011799,2]
[347591924,1735935034795,-1975.9,0.00011799,2]
[347591925,1735935034805,-550.37,0.00011799,2]
[347591926,1735935034816,-851.53,0.00011799,2]
[347591927,1735935034827,-500.0,0.000118,2]
[347591928,1735935034837,-560.69,0.000118,2]
[347591929,1735935034848,-500.0,0.000118,2]
[347591930,1735935034858,-569.29,0.000118,2]
[347591931,1735935034870,-5559.0,0.000118,5]
[347591932,1735935034881,-269.16,0.00011805,2]
[347591933,1735935034900,-150.0,0.00011824,2]
[347591934,1735935034911,-1000.0,0.00011849,2]
[347591935,1735935034922,-500.0,0.00011878,2]
[347591936,1735935034932,-500.0,0.00011878,2]
[347591937,1735935034943,-500.0,0.00011879,2]
[347591938,1735935034954,-500.0,0.00011879,2]
[347591939,1735935034964,-500.0,0.00011879,2]
[347591940,1735935034975,-495.66,0.00011879,2]
[347591941,1735935034987,-500.0,0.00011879,2]
[347591942,1735935034997,-500.0,0.00011879,2]
[347591943,1735935035008,-500.0,0.00011879,2]
[347591944,1735935035018,-500.0,0.00011879,2]
[347591945,1735935035028,-299.29,0.00011879,2]
[347591946,1735935035038,-500.0,0.00011879,2]
[347591947,1735935035048,-500.0,0.00011879,2]
[347591948,1735935035059,-500.0,0.00011879,2]
[347591949,1735935035069,-500.0,0.00011879,2]
[347591950,1735935035079,-500.0,0.00011879,2]
[347591951,1735935035089,-500.0,0.00011879,2]
[347591952,1735935035099,-500.0,0.00011879,2]